bitfinex-derivatives/quotes_ETHF0:USTF0_20230403
["timestamp","ask_amount","ask_price","bid_price","bid_amount"]
[1680531599393,0.85680992,1806.8,1806.7,0.86955787]
[1680531602890,0.85680992,1806.8,1806.7,2.15524722]
[1680531603091,0.27793842,1806.8,1806.7,2.84155425]
[1680531603296,0.27793842,1806.8,1806.7,1.84579556]
[1680531603585,3.48573842,1806.8,1806.7,2.02921999]
[1680531603790,3.48573842,1806.8,1806.7,0.86973656]
[1680531603791,5.17160992,1806.8,1806.7,0.86973656]
[1680531603985,5.46256545,1806.8,1806.7,0.86973656]
[1680531604591,6.04282721,1806.8,1806.7,0.86973656]
[1680531604989,5.46256545,1806.8,1806.7,0.86973656]
[1680531605494,5.46256545,1806.8,1806.6,0.86973656]
[1680531605689,0.58029504,1806.7,1806.5,1.15948853]
[1680531606191,0.48706102,1806.6,1806.5,1.15948853]
[1680531607697,0.48706102,1806.6,1806.5,2.15948853]
[1680531607898,0.48706102,1806.6,1806.5,2.84586016]
[1680531608287,0.48706102,1806.6,1806.5,0.68637163]
[1680531608692,0.48706102,1806.6,1806.5,1.68637163]
[1680531610191,0.48706102,1806.6,1806.5,2.84606715]
[1680531610486,0.48706102,1806.6,1806.5,1.84611762]
[1680531612502,0.48706102,1806.6,1806.5,1.15974599]
[1680531613600,1.06735606,1806.6,1806.5,1.15974599]
[1680531617502,4.27515606,1806.6,1806.5,1.15974599]
[1680531618703,1.06735606,1806.6,1806.5,1.15974599]
[1680531620905,4.27515606,1806.6,1806.5,1.15974599]
[1680531628702,1.06735606,1806.6,1806.5,1.15974599]
[1680531631419,1.06735606,1806.6,1806.5,1.84611762]
[1680531632517,1.06735606,1806.6,1806.5,1.15974599]
[1680531633115,1.06735606,1806.6,1806.5,1.84611762]
[1680531633116,0.85368487,1806.6,1806.5,1.84611762]
[1680531633515,0.85368487,1806.6,1806.5,1.15974599]
[1680531633712,0.85368487,1806.6,1806.5,1.84611762]
[1680531635528,0.85368487,1806.6,1806.5,0.68637163]
[1680531640032,0.85368487,1806.6,1806.5,1.68637163]
[1680531640232,0.85368487,1806.6,1806.5,6.33842597]
[1680531640635,0.85368487,1806.6,1806.5,3.13062597]
[1680531641835,0.67121582,1806.6,1806.5,3.13062597]
[1680531642438,0.67121582,1806.6,1806.5,2.13062597]
[1680531645831,0.09092078,1806.6,1806.5,5.33842597]
[1680531646030,1.1566791,1806.9,1806.6,0.09]
[1680531646338,1.72346392,1807.2,1806.8,5.75827128]
[1680531646536,1.72346392,1807.2,1807.1,0.87015027]
[1680531646737,1.72346392,1807.2,1807.0,4.36800036]
[1680531647832,0.56678482,1807.2,1807.0,4.07686611]
[1680531648032,2.2536791,1807.4,1807.0,4.07686611]
[1680531648831,1.1566791,1807.4,1807.2,1.1]
[1680531651336,1.1566791,1807.5,1807.2,1.1]
[1680531652641,2.1566791,1807.5,1807.2,1.1]
[1680531652842,1.1566791,1807.5,1807.2,1.1]
[1680531653235,2.1566791,1807.5,1807.2,1.1]
[1680531653441,1.1566791,1807.5,1807.2,1.1]
[1680531653641,1.1566791,1807.5,1807.3,0.28711651]
[1680531654046,2.1566791,1807.5,1807.3,0.28711651]
[1680531656046,1.0,1807.5,1807.3,0.28711651]
[1680531656346,6.4804791,1807.6,1807.3,0.28711651]
[1680531657146,5.4804791,1807.6,1807.3,0.28711651]
[1680531662456,6.4804791,1807.6,1807.3,0.28711651]
[1680531663152,3.2078,1807.4,1807.3,0.28711651]
[1680531663358,4.3048,1807.4,1806.9,1.102]
[1680531663855,4.3048,1807.4,1807.0,0.28722018]
[1680531666563,1.103,1807.2,1807.0,0.28722018]
[1680531666753,4.3108,1807.2,1807.0,0.28722018]
[1680531667062,4.3108,1807.2,1806.8,3.2078]
[1680531668961,1.103,1807.2,1806.8,3.2078]
[1680531669654,1.103,1807.2,1806.8,4.07686611]
[1680531669855,1.103,1807.2,1806.9,1.0]
[1680531670056,4.3148,1807.4,1807.0,1.0]
[1680531670452,4.3148,1807.4,1807.0,4.2078]
[1680531670654,5.4804791,1807.6,1807.1,1.105]
[1680531671054,6.4804791,1807.6,1807.1,1.105]
[1680531671762,5.4804791,1807.6,1807.1,1.105]
[1680531671962,5.4804791,1807.6,1807.2,0.22604351]
[1680531672161,5.4804791,1807.6,1807.1,1.105]
[1680531682268,5.4614791,1807.6,1807.1,1.106]
[1680531682470,1.0,1807.5,1807.1,1.106]
[1680531682666,3.2078,1807.4,1807.1,1.106]
[1680531683666,3.2078,1807.4,1807.1,1.68516423]
[1680531684068,1.1566791,1807.5,1807.1,1.68516423]
[1680531684664,1.1566791,1807.5,1807.1,1.106]
[1680531684864,3.2078,1807.4,1807.1,1.68516423]
[1680531686869,3.2078,1807.4,1807.2,0.22619615]
[1680531687065,3.2078,1807.4,1807.1,1.68516423]
[1680531687574,4.3644791,1807.4,1807.1,1.68516423]
[1680531688270,3.2078,1807.2,1807.0,0.57916423]
[1680531688468,4.3148,1807.2,1806.9,1.44823034]
[1680531688661,3.2078,1807.0,1806.9,0.57916423]
[1680531689878,4.44753782,1807.0,1806.8,0.57916423]
[1680531690968,5.60421692,1807.0,1806.8,1.44823034]
[1680531691865,5.60421692,1807.0,1806.8,0.57916423]
[1680531694574,4.44753782,1807.0,1806.8,0.57916423]
[1680531695771,1.23973782,1807.0,1806.8,0.57916423]
[1680531696181,0.13573782,1807.0,1806.8,0.57916423]
[1680531696470,0.13573782,1807.0,1806.9,0.57916423]
[1680531696673,1.1566791,1807.3,1806.9,1.97306611]
[1680531696870,1.1566791,1807.3,1807.0,0.57967151]
[1680531701882,0.10254516,1807.2,1807.0,0.57967151]
[1680531702087,0.10254516,1807.2,1807.0,1.67967151]
[1680531703781,0.10254516,1807.2,1807.1,0.57967151]
[1680531704182,1.1566791,1807.4,1807.1,0.57967151]
[1680531706082,0.86880047,1807.3,1807.1,0.57967151]
[1680531709893,0.86880047,1807.2,1807.1,0.57967151]
[1680531710093,0.86880047,1807.3,1807.1,0.57967151]
[1680531712599,0.86880047,1807.3,1807.2,2.77767151]
[1680531713001,0.86880047,1807.3,1807.2,2.90131751]
[1680531714095,0.86880047,1807.3,1807.2,1.80131751]
[1680531716991,0.86880047,1807.3,1807.2,1.86031767]
[1680531720105,0.86880047,1807.4,1807.2,5.06811767]
[1680531722001,0.86880047,1807.4,1807.2,5.07611767]
[1680531722904,0.86880047,1807.4,1807.3,0.57967151]
[1680531723106,0.86880047,1807.4,1807.3,1.57967151]
[1680531723300,0.86880047,1807.4,1807.3,0.57554286]
[1680531723598,0.86880047,1807.4,1807.2,5.30651211]
[1680531723903,0.86880047,1807.6,1807.3,1.97106611]
[1680531724200,0.86880047,1807.7,1807.6,3.2078]
[1680531724396,0.86880047,1807.7,1807.6,5.3118]
[1680531725897,2.02547957,1807.8,1807.6,5.3118]
[1680531726104,0.86880047,1807.8,1807.7,1.104]
[1680531726298,0.86880047,1807.9,1807.7,2.104]
[1680531726606,0.86880047,1807.9,1807.8,4.3078]
[1680531729210,0.86628064,1807.9,1807.8,4.3078]
[1680531729601,2.9993972,1808.1,1807.8,4.3078]
[1680531729602,2.70617836,1808.1,1807.8,4.3078]
[1680531730295,2.70617836,1808.1,1807.8,1.1]
[1680531730611,2.70617836,1808.1,1807.8,4.3078]
[1680531730906,1.70617836,1808.1,1807.8,4.3078]
[1680531731501,0.54949926,1808.1,1807.8,4.3078]
[1680531731802,15.89203753,1808.0,1807.5,4.3148]
[1680531732104,3.2078,1808.0,1807.9,1.72925963]
[1680531732300,8.37125143,1808.0,1807.9,0.07325903]
[1680531735906,8.37125143,1808.0,1807.7,1.0]
[1680531736106,5.16345143,1807.9,1807.7,1.0]
[1680531736306,3.2078,1808.0,1807.8,1.104]
[1680531736504,5.16300242,1807.9,1807.7,1.0]
[1680531736705,5.16300242,1807.8,1807.7,1.0]
[1680531736904,5.16300242,1807.8,1807.7,2.104]
[1680531737506,5.04868065,1807.8,1807.7,2.104]
[1680531737702,5.04868065,1807.9,1807.7,0.67497399]
[1680531738004,5.04868065,1807.8,1807.6,1.0]
[1680531738205,8.51335961,1807.7,1807.6,1.0]
[1680531738406,8.51335961,1807.7,1807.6,2.105]
[1680531738606,4.22808971,1807.7,1807.6,3.205]
[1680531738910,3.2078,1808.2,1807.6,3.205]
[1680531738911,4.2078,1808.2,1807.6,3.205]
[1680531739111,3.2078,1808.2,1808.1,1.1]
[1680531739503,3.77679688,1808.3,1808.1,1.1]
[1680531742508,3.76310254,1808.4,1808.1,1.1]
[1680531747010,3.76310254,1808.4,1808.2,0.83325683]
[1680531749410,3.76310254,1808.4,1808.0,1.104]
[1680531749619,3.2078,1808.1,1808.0,1.104]
[1680531755825,3.2078,1808.1,1807.8,1.106]
[1680531756119,3.2078,1808.1,1807.5,1.70013067]
[1680531756120,3.2078,1807.9,1807.5,1.70013067]
[1680531756417,3.2078,1807.7,1807.5,1.70013067]
[1680531756622,3.2078,1807.7,1807.5,0.83086703]
[1680531761936,3.2078,1807.7,1807.6,0.59501744]
[1680531765823,3.2078,1807.7,1807.6,1.46428108]
[1680531770128,3.786668,1807.9,1807.6,2.57028108]
[1680531770537,3.2078,1807.9,1807.7,0.86926364]
[1680531770727,3.2078,1807.9,1807.8,2.104]
[1680531770926,0.578868,1808.0,1807.8,2.97326364]
[1680531771132,0.578868,1808.0,1807.9,1.0]
[1680531771332,3.786668,1808.1,1807.9,2.107]
[1680531771635,3.786668,1808.1,1808.0,1.105]
[1680531772040,0.578868,1808.3,1808.0,1.97426364]
[1680531772226,0.578868,1808.3,1808.2,1.1]
[1680531777033,0.578868,1808.3,1808.2,2.0213213]
[1680531779838,0.578868,1808.3,1808.2,0.9213213]
[1680531781837,1.0,1808.3,1808.2,0.9213213]
[1680531782236,5.46963607,1808.4,1808.0,1.1]
[1680531782533,3.78655423,1808.2,1808.0,1.1]
[1680531783541,3.78655423,1808.2,1808.1,1.1]
[1680531785239,3.2078,1808.2,1808.1,1.1]
[1680531787643,3.78655423,1808.2,1808.1,1.1]
[1680531788644,3.78655423,1808.2,1807.9,1.96726364]
[1680531788847,3.2078,1808.0,1807.8,0.86926364]
[1680531792052,3.16309083,1808.0,1807.9,0.71249666]
[1680531792252,3.11908564,1808.0,1807.9,0.71249666]
[1680531795452,3.11908564,1808.0,1807.9,1.81249666]
[1680531795653,3.78655423,1808.2,1807.9,3.7817603]
[1680531795965,0.57875423,1808.2,1808.1,1.106]
[1680531796152,3.78655423,1808.2,1808.1,1.106]
[1680531796462,3.78655423,1808.2,1808.1,1.80952441]
[1680531798559,4.88855423,1808.2,1807.9,0.86926364]
[1680531798761,4.88855423,1808.2,1807.3,7.88593114]
[1680531798762,5.0,1807.9,1807.4,1.15780265]
[1680531798956,3.2078,1807.5,1807.2,1.15780265]
[1680531799164,3.2078,1807.3,1807.2,1.84385761]
[1680531799561,3.2078,1807.3,1807.2,1.8877451]
[1680531799859,3.2078,1807.3,1807.2,0.04388749]
[1680531800364,3.2078,1807.3,1807.1,1.15780265]
[1680531800565,3.2078,1807.3,1807.2,0.04870262]
[1680531800757,3.2078,1807.3,1807.1,2.15780265]
[1680531801061,3.2078,1807.3,1807.1,1.15780265]
[1680531801262,3.2078,1807.3,1807.1,1.84391061]
[1680531801463,3.2078,1807.3,1807.1,1.15780265]
[1680531803370,3.2078,1807.3,1807.0,2.15780265]
[1680531803664,3.2078,1807.1,1807.0,2.15780265]
[1680531803866,3.05532599,1807.1,1807.0,2.15780265]
[1680531804462,3.2078,1807.3,1807.0,2.78609839]
[1680531804768,3.2078,1807.3,1807.2,1.0]
[1680531805369,3.2078,1807.3,1807.1,1.107]
[1680531807070,3.2078,1807.3,1807.2,0.04876776]
[1680531807267,3.2078,1807.3,1807.2,1.0]
[1680531809069,3.2078,1807.3,1807.2,2.105]
[1680531817273,3.2078,1807.5,1807.2,3.205]
[1680531817480,3.2078,1807.5,1807.4,1.1]
[1680531822178,3.2078,1807.5,1807.4,0.1720703]
[1680531822371,3.2078,1807.5,1807.3,1.107]
[1680531824880,3.2078,1807.5,1807.2,1.104]
[1680531825078,3.2078,1807.5,1807.3,1.0]
[1680531829483,3.2078,1807.5,1807.4,1.1]
[1680531836087,3.2078,1807.5,1807.4,2.25705854]
[1680531836892,3.2078,1807.5,1807.4,1.1]
[1680531837083,3.2078,1807.5,1807.4,1.45060162]
[1680531838988,3.2078,1807.5,1807.4,2.60766016]
[1680531839991,3.2078,1807.5,1807.4,4.29367983]
[1680531840386,3.2078,1807.7,1807.4,4.29367983]
[1680531840589,3.2078,1807.7,1807.6,1.106]
[1680531842289,3.78627282,1807.7,1807.6,1.106]
[1680531843192,3.78627282,1807.7,1807.6,2.26305854]
[1680531843588,3.78627282,1807.7,1807.6,1.106]
[1680531852103,3.78627282,1807.7,1807.6,1.2642855]
[1680531858611,3.78627282,1807.7,1807.6,2.13386881]
[1680531860710,3.78627282,1807.7,1807.6,1.30886881]
[1680531861997,3.78627282,1807.7,1807.6,2.13786881]
[1680531867716,3.78627282,1807.7,1807.6,1.2682855]
[1680531867911,3.78627282,1807.7,1807.6,3.42534404]
[1680531869117,3.78627282,1807.7,1807.6,2.42534404]
[1680531872019,3.78627282,1807.7,1807.6,2.42234404]
[1680531875110,3.78627282,1807.7,1807.6,3.10833536]
[1680531875420,0.57847282,1807.7,1807.6,3.10833536]
[1680531878622,3.78627282,1807.7,1807.6,3.10833536]
[1680531879415,4.65398205,1807.7,1807.6,1.95127682]
[1680531880016,4.07550923,1807.7,1807.6,3.11225967]
[1680531880216,4.07550923,1807.7,1807.6,2.28626605]
[1680531880817,6.19163607,1807.7,1807.6,1.31008687]
[1680531881026,6.19163607,1807.7,1807.6,1.1894155]
[1680531881221,5.0368,1807.7,1807.6,1.76996933]
[1680531881420,5.0368,1807.7,1807.6,1.76996776]
[1680531881617,5.0368,1807.7,1807.6,1.1894155]
[1680531881820,5.0368,1807.7,1807.6,1.76998135]
[1680531882024,6.18914779,1807.7,1807.6,0.89917998]
[1680531885129,5.18914779,1807.7,1807.6,1.76998135]
[1680531885317,5.18914779,1807.7,1807.6,1.7696379]
[1680531885518,4.0298,1807.7,1807.6,1.1894155]
[1680531885718,5.18914779,1807.7,1807.6,1.76963683]
[1680531886022,5.18914779,1807.7,1807.6,0.89883546]
[1680531886221,5.18914779,1807.7,1807.6,0.89879384]
[1680531890020,4.07746735,1807.7,1807.6,1.1894155]
[1680531890822,4.36714779,1807.7,1807.6,0.89869151]
[1680531891319,3.2078,1807.7,1807.6,0.89869151]
[1680531891727,4.36714779,1807.7,1807.6,0.89869151]
[1680531892225,3.2078,1807.7,1807.6,0.89869151]
[1680531893727,4.36714779,1807.7,1807.6,0.89869151]
[1680531893919,3.2078,1807.7,1807.6,0.89869151]
[1680531894424,4.36714779,1807.7,1807.6,0.89869151]
[1680531897527,3.2078,1807.7,1807.6,0.89869151]
[1680531900529,4.07680825,1807.7,1807.6,0.89869151]
[1680531900729,4.07680825,1807.7,1807.6,1.76949288]
[1680531901325,4.07680825,1807.7,1807.6,0.89869151]
[1680531901527,4.07680825,1807.7,1807.6,1.76949288]
[1680531901922,4.07680825,1807.7,1807.6,0.89869151]
[1680531903633,4.07680825,1807.7,1807.6,1.76949288]
[1680531910235,4.07680825,1807.7,1807.6,0.89869151]
[1680531910536,4.90480825,1807.7,1807.6,0.89869151]
[1680531910726,4.0358,1807.7,1807.6,0.89869151]
[1680531911127,5.0358,1807.7,1807.6,0.89869151]
[1680531911328,4.0358,1807.7,1807.6,0.89869151]
[1680531912027,3.2078,1807.7,1807.6,0.89869151]
[1680531912729,4.36714779,1807.7,1807.6,0.89869151]
[1680531915533,4.07661619,1807.7,1807.6,1.1894155]
[1680531917133,4.07661619,1807.7,1807.6,1.76940797]
[1680531917430,4.07661619,1807.7,1807.6,1.1894155]
[1680531919839,4.07661619,1807.7,1807.6,1.76946002]
[1680531920139,4.07661619,1807.7,1807.6,1.1894155]
[1680531922041,4.07661619,1807.7,1807.6,1.76952183]
[1680531922234,4.07661619,1807.7,1807.6,1.1894155]
[1680531922440,4.07712564,1807.7,1807.6,1.1894155]
[1680531923943,3.2078,1807.7,1807.6,1.1894155]
[1680531924339,3.2078,1807.7,1807.6,2.1894155]
[1680531924845,3.2078,1807.7,1807.6,1.1894155]
[1680531925042,4.36714779,1807.7,1807.6,1.1894155]
[1680531925241,3.2078,1807.7,1807.6,1.1894155]
[1680531925441,4.07731951,1807.7,1807.6,1.1894155]
[1680531925742,4.07731951,1807.7,1807.6,3.0154155]
[1680531926043,4.36714779,1807.7,1807.6,2.0154155]
[1680531926343,3.2078,1807.7,1807.6,1.14461413]
[1680531926543,3.2078,1807.7,1807.6,2.0152895]
[1680531927141,4.07766805,1807.7,1807.6,2.30560336]
[1680531934650,4.07766805,1807.7,1807.6,1.47960336]
[1680531934956,3.2078,1807.7,1807.6,1.18915006]
[1680531936751,4.36714779,1807.7,1807.6,1.18915006]
[1680531937258,4.36714779,1807.7,1807.6,1.76953869]
[1680531937456,4.36714779,1807.7,1807.6,1.18915006]
[1680531942666,4.65134509,1807.7,1807.3,1.45047128]
[1680531942867,1.16062571,1807.5,1807.4,1.45112582]
[1680531943064,5.48758327,1807.5,1807.4,0.58045033]
[1680531943561,5.3968981,1807.5,1807.2,0.87067549]
[1680531943767,4.60965576,1807.3,1807.2,0.87067549]
[1680531944653,4.89958364,1807.3,1807.2,0.87067549]
[1680531944860,4.60964034,1807.3,1807.2,0.87067549]
[1680531945166,5.47940815,1807.3,1807.2,0.87067549]
[1680531945371,4.89958364,1807.3,1807.2,0.87067549]
[1680531945562,4.60925519,1807.3,1807.2,0.87067549]
[1680531945762,4.60925519,1807.3,1807.1,0.87067549]
[1680531946172,4.60925519,1807.3,1807.2,0.87067549]
[1680531946370,4.60925519,1807.3,1807.1,0.87067549]
[1680531948771,3.78725519,1807.3,1807.2,0.87067549]
[1680531949069,3.78725519,1807.3,1807.1,1.87067549]
[1680531952369,3.78725519,1807.3,1807.1,0.87067549]
[1680531955370,3.2078,1807.3,1807.1,0.87067549]
[1680531955576,3.78725519,1807.3,1807.1,0.87067549]
[1680531955774,3.2078,1807.3,1807.1,0.87067549]
[1680531956073,3.2078,1807.3,1807.0,2.69367549]
[1680531956074,3.78725519,1807.3,1807.0,2.69367549]
[1680531956274,3.2078,1807.1,1807.0,2.69367549]
[1680531956469,3.2078,1807.1,1807.0,1.823]
[1680531956677,3.2078,1807.1,1807.0,2.98390066]
[1680531959478,0.57945519,1807.5,1807.0,3.33825877]
[1680531959679,0.57945519,1807.5,1807.2,1.69461992]
[1680531959876,0.57945519,1807.5,1807.3,1.0]
[1680531960879,3.2078,1807.4,1807.3,1.0]
[1680531961682,0.57945519,1807.5,1807.3,1.0]
[1680531961979,0.57945519,1807.6,1807.3,1.0]
[1680531962184,3.78725519,1807.6,1807.3,1.828]
[1680531962381,0.57945519,1807.5,1807.3,1.828]
[1680531967089,4.65703883,1807.6,1807.3,1.828]
[1680531967290,0.57945519,1807.5,1807.3,1.828]
[1680531967987,3.2078,1807.4,1807.3,1.828]
[1680531968390,3.2078,1807.4,1807.3,0.828]
[1680531970087,3.2078,1807.4,1807.3,1.14083481]
[1680531970593,0.57945519,1807.5,1807.3,1.14083481]
[1680531970594,0.57945519,1807.5,1807.3,2.14083481]
[1680531972095,0.57945519,1807.5,1807.4,0.828]
[1680531972297,4.65703883,1807.6,1807.4,0.828]
[1680531972487,0.57945519,1807.5,1807.4,0.828]
[1680531974994,0.86978364,1807.5,1807.3,0.31283481]
[1680531975203,3.78686799,1807.4,1807.3,0.31283481]
[1680531975592,3.2078,1807.4,1807.3,0.31283481]
[1680531975993,3.78686799,1807.4,1807.3,0.31283481]
[1680531976291,3.2078,1807.4,1807.3,0.31283481]
[1680531976487,3.78686799,1807.4,1807.3,0.31283481]
[1680531979402,4.07758364,1807.4,1807.3,0.31283481]
[1680531979600,4.07758364,1807.4,1807.1,0.86861992]
[1680531979794,3.2078,1807.2,1807.1,0.86861992]
[1680531981198,3.2078,1807.2,1807.1,0.86946691]
[1680531981399,3.2078,1807.2,1807.0,2.53951666]
[1680531983602,3.2078,1807.2,1807.1,1.1581599]
[1680531985202,3.2078,1807.2,1807.1,1.4705637]
[1680531987403,3.78708278,1807.2,1807.1,1.4705637]
[1680531990706,3.78708278,1807.2,1807.1,0.3124038]
[1680531991507,3.78708278,1807.2,1807.1,1.4705637]
[1680532004114,3.78708278,1807.2,1807.1,1.18266625]
[1680532005111,3.78708278,1807.2,1807.1,0.3124038]
[1680532006000,3.78708278,1807.2,1807.1,1.18263009]
[1680532006209,3.78708278,1807.2,1807.1,0.3124038]
[1680532006612,3.78708278,1807.2,1807.1,1.18263629]
[1680532007111,3.78708278,1807.2,1807.1,0.3124038]
[1680532009716,3.78708278,1807.2,1807.1,1.4705637]
[1680532009912,3.78708278,1807.2,1807.1,0.3124038]
[1680532010311,3.78708278,1807.2,1807.1,1.18267744]
[1680532010709,3.78708278,1807.2,1807.1,0.10079856]
[1680532013325,3.78708278,1807.2,1807.1,1.25895846]
[1680532013625,3.78708278,1807.2,1807.1,0.10079856]
[1680532014334,3.78708278,1807.2,1807.1,0.09605441]
[1680532014626,3.78708278,1807.2,1807.1,1.25421431]
[1680532014823,3.78708278,1807.2,1807.1,0.09605441]
[1680532015333,4.65686642,1807.2,1807.1,0.09605441]
[1680532015533,3.78708278,1807.2,1807.1,0.09605441]
[1680532016636,3.78708278,1807.2,1807.1,1.25421431]
[1680532018039,0.57928278,1807.2,1807.1,2.07721431]
[1680532018438,0.57928278,1807.2,1807.1,2.76338719]
[1680532018638,0.57928278,1807.2,1807.1,1.60522729]
[1680532018838,0.86978364,1807.3,1807.1,3.05869857]
[1680532018839,0.57928278,1807.3,1807.1,3.05869857]
[1680532019033,0.57928278,1807.3,1807.2,2.51417288]
[1680532019539,0.57928278,1807.3,1807.2,3.77497077]
[1680532020436,0.57928278,1807.4,1807.2,4.06493661]
[1680532020633,0.57928278,1807.4,1807.3,3.67576356]
[1680532020932,1.44906642,1807.4,1807.3,2.98966623]
[1680532021132,0.57928278,1807.4,1807.3,2.98966623]
[1680532021435,1.44906642,1807.4,1807.3,1.98966623]
[1680532021637,0.86978364,1807.4,1807.3,1.98966623]
[1680532021838,1.44974993,1807.4,1807.3,1.98966623]
[1680532022034,0.86978364,1807.4,1807.3,1.98966623]
[1680532023840,4.36758892,1807.5,1807.3,0.87064673]
[1680532024039,0.87000461,1807.4,1807.3,0.87064673]
[1680532024240,1.87000461,1807.4,1807.2,1.26095868]
[1680532024441,3.78774275,1807.3,1807.2,1.26095868]
[1680532024745,3.78774275,1807.3,1807.2,1.94710113]
[1680532026839,3.78774275,1807.3,1807.1,1e-08]
[1680532026840,1.0,1807.2,1807.1,1e-08]
[1680532027034,2.98860353,1807.2,1806.8,1.45047128]
[1680532027243,3.2078,1806.9,1806.8,1.45047128]
[1680532027441,3.2078,1806.9,1806.8,2.13673754]
[1680532028033,3.2078,1806.9,1806.8,1.45047128]
[1680532028443,3.2078,1806.9,1806.7,2.13673754]
[1680532028742,3.2078,1806.9,1806.8,0.68626626]
[1680532029043,3.2078,1806.9,1806.7,2.13673754]
[1680532029350,3.2078,1806.9,1806.8,0.68626626]
[1680532030241,3.2078,1806.9,1806.7,2.13673754]
[1680532030438,3.2078,1806.9,1806.8,0.68626626]
[1680532030745,3.2078,1806.9,1806.7,1.45047128]
[1680532030941,3.2078,1806.9,1806.7,2.13675791]
[1680532031146,3.78758293,1806.9,1806.6,2.83298493]
[1680532031343,3.2078,1806.7,1806.6,2.27947128]
[1680532031550,3.2078,1806.7,1806.6,2.96577656]
[1680532032049,3.2078,1806.7,1806.6,2.13677656]
[1680532032847,3.59491913,1806.7,1806.6,2.13677656]
[1680532033041,3.2078,1806.7,1806.6,2.13677656]
[1680532033353,3.5949146,1806.7,1806.6,2.13677656]
[1680532033649,3.2078,1806.7,1806.6,2.13677656]
[1680532034339,0.38710638,1806.7,1806.6,3.13677656]
[1680532034539,4.59401254,1806.9,1806.6,3.13677656]
[1680532034740,4.59401254,1806.9,1806.7,1.68630528]
[1680532034947,0.18734659,1806.8,1806.7,1.0]
[1680532035151,0.18734659,1806.8,1806.7,1.68628434]
[1680532035546,0.18734659,1806.8,1806.7,0.68628434]
[1680532035850,0.18734659,1806.8,1806.7,1.68628434]
[1680532036254,0.18734659,1806.8,1806.7,0.68628434]
[1680532036654,0.18734659,1806.8,1806.6,2.45047128]
[1680532036855,4.0368,1806.9,1806.7,0.68629566]
[1680532037251,0.18732649,1806.8,1806.5,3.27347128]
[1680532037452,0.18732649,1806.8,1806.6,0.68631858]
[1680532037651,3.2078,1806.7,1806.6,0.68631858]
[1680532039355,3.2078,1806.7,1806.5,2.27347128]
[1680532040149,3.2078,1806.7,1806.6,0.68631544]
[1680532040350,3.2078,1806.7,1806.5,2.27347128]
[1680532043054,3.2078,1806.7,1806.5,0.823]
[1680532045259,0.36946289,1806.6,1806.5,0.823]
[1680532045463,0.36946289,1806.6,1806.5,1.50933556]
[1680532046752,4.0368,1806.9,1806.5,3.95980684]
[1680532046950,4.0368,1806.9,1806.5,3.27347128]
[1680532047153,3.2078,1806.9,1806.6,0.823]
[1680532048463,3.2078,1806.7,1806.6,0.823]
[1680532052062,3.2078,1806.7,1806.5,0.823]
[1680532053869,3.2078,1806.7,1806.6,1.0]
[1680532054069,4.0298,1806.9,1806.6,1.0]
[1680532056861,3.2078,1806.9,1806.7,0.826]
[1680532057165,1.13323167,1807.0,1806.8,1.652]
[1680532057364,0.55344874,1807.0,1806.9,0.829]
[1680532057564,3.78758293,1807.1,1806.9,0.829]
[1680532058376,3.2078,1807.1,1806.9,0.829]
[1680532059471,3.2078,1807.1,1807.0,0.05071326]
[1680532061482,3.2078,1807.1,1807.0,1.05071326]
[1680532061679,0.8696744,1807.3,1807.0,1.87671326]
[1680532061680,3.78758293,1807.3,1807.0,1.87671326]
[1680532061971,3.78758293,1807.3,1807.1,0.828]
[1680532063480,3.78758293,1807.3,1807.1,1.4073098]
[1680532065373,4.65725733,1807.3,1807.1,1.4073098]
[1680532065567,3.78758293,1807.3,1807.1,1.4073098]
[1680532066471,4.65725733,1807.3,1807.1,1.4073098]
[1680532067478,3.78758293,1807.3,1807.1,1.4073098]
[1680532068283,3.78758293,1807.3,1807.2,0.5793098]
[1680532068484,3.78758293,1807.3,1807.1,0.828]
[1680532068485,3.78758293,1807.3,1807.1,1.4073098]
[1680532068782,3.78758293,1807.3,1807.2,0.5793098]
[1680532070075,3.78758293,1807.3,1807.1,1.4073098]
[1680532071173,0.57978293,1807.2,1807.1,1.4073098]
[1680532071381,4.65725733,1807.3,1807.1,1.4073098]
[1680532071578,3.78758293,1807.3,1807.1,1.4073098]
[1680532071978,4.65725733,1807.3,1807.1,1.4073098]
[1680532072475,3.78758293,1807.3,1807.2,0.5793098]
[1680532072676,3.78758293,1807.3,1807.1,1.4073098]
[1680532072876,0.57881189,1807.2,1807.1,1.4073098]
[1680532073174,1.57881189,1807.2,1807.1,0.5793098]
[1680532073390,0.57881189,1807.2,1807.1,0.5793098]
[1680532074983,4.65482972,1807.3,1807.1,0.5793098]
[1680532075287,4.07601783,1807.3,1807.2,0.35282711]
[1680532075485,4.07601783,1807.3,1807.1,0.5793098]
[1680532075678,0.57877461,1807.2,1807.1,0.5793098]
[1680532077989,4.65479244,1807.3,1807.1,0.5793098]
[1680532078189,0.57877461,1807.2,1807.1,0.5793098]
[1680532078891,4.65479244,1807.3,1807.1,0.5793098]
[1680532079090,0.57877461,1807.2,1807.1,0.5793098]
[1680532079294,4.65479244,1807.3,1807.1,0.5793098]
[1680532079892,0.57877461,1807.2,1807.1,0.5793098]
[1680532080493,4.65479244,1807.3,1807.1,0.5793098]
[1680532081694,3.78657461,1807.3,1807.1,0.5793098]
[1680532081995,3.78657461,1807.3,1807.1,1.4083098]
[1680532082291,4.65479244,1807.3,1807.1,1.4083098]
[1680532083491,3.78657461,1807.3,1807.1,1.4083098]
[1680532083692,4.65479244,1807.3,1807.1,1.4083098]
[1680532084489,3.78657461,1807.3,1807.1,1.4083098]
[1680532090205,3.78657461,1807.3,1807.2,0.35257894]
[1680532090504,3.78657461,1807.3,1807.1,1.4083098]
[1680532091297,3.78657461,1807.3,1807.2,2.27036441]
[1680532091515,3.2078,1807.3,1807.2,2.27036441]
[1680532091817,3.2078,1807.3,1807.2,1.4013098]
[1680532092015,3.2078,1807.3,1807.2,1.44836441]
[1680532092211,3.2078,1807.3,1807.2,1.69105461]
[1680532092417,0.57877461,1807.5,1807.2,2.52005461]
[1680532092617,0.86821783,1807.6,1807.4,1.40825474]
[1680532092618,0.57877461,1807.6,1807.4,1.40825474]
[1680532092813,3.78657461,1807.7,1807.5,0.57923935]
[1680532093120,3.78657461,1807.7,1807.6,1.823]
[1680532093310,3.78657461,1807.7,1807.6,0.823]
[1680532094123,3.78657461,1807.7,1807.6,0.81985362]
[1680532094513,3.78657461,1807.7,1807.6,1.81985362]
[1680532095416,3.2078,1807.7,1807.6,2.39909297]
[1680532095616,3.78657461,1807.7,1807.6,2.39909297]